bitfinex-derivatives/quotes_BTCF0:USTF0_20251028
["timestamp","ask_amount","ask_price","bid_price","bid_amount"]
[1761674751116,0.04566,115250.0,115240.0,0.02315]
[1761674751320,0.25083277,115250.0,115240.0,0.20123]
[1761674751525,0.25083277,115250.0,115240.0,0.21454]
[1761674751921,0.23785277,115250.0,115240.0,0.21454]
[1761674752124,0.002,115260.0,115240.0,1.00116992]
[1761674752427,0.002,115260.0,115250.0,0.22718671]
[1761674752428,0.23785528,115260.0,115250.0,0.22718671]
[1761674752822,0.41370199,115260.0,115250.0,0.04435]
[1761674753122,0.77450199,115260.0,115250.0,0.04435]
[1761674754826,0.77450199,115260.0,115250.0,0.20123]
[1761674755324,0.41370199,115260.0,115250.0,0.20123]
[1761674755525,0.23785528,115260.0,115250.0,0.74486671]
[1761674755830,0.24185528,115260.0,115250.0,0.21454]
[1761674756337,0.24185528,115260.0,115250.0,0.38406671]
[1761674757135,0.07232857,115260.0,115250.0,0.21454]
[1761674757336,0.41138199,115260.0,115250.0,0.21454]
[1761674759624,0.42501199,115260.0,115250.0,0.21454]
[1761674759828,0.78581199,115260.0,115250.0,0.21454]
[1761674760427,0.78581199,115260.0,115250.0,0.20123]
[1761674760630,0.42501199,115260.0,115250.0,0.20123]
[1761674761037,0.78581199,115260.0,115250.0,0.20123]
[1761674761232,0.78581564,115260.0,115250.0,0.20123]
[1761674764235,0.80909823,115260.0,115250.0,0.20123]
[1761674765839,0.05663,115240.0,115230.0,0.58921472]
[1761674766033,0.21320671,115240.0,115230.0,0.67599882]
[1761674766238,0.21320671,115240.0,115230.0,0.83287882]
[1761674766540,0.43176259,115260.0,115250.0,0.05685]
[1761674766747,0.78113784,115260.0,115250.0,0.22637671]
[1761674767046,0.09393113,115260.0,115250.0,0.38325671]
[1761674767246,0.24017525,115260.0,115250.0,0.38325671]
[1761674767648,0.23817525,115260.0,115250.0,0.38325671]
[1761674768343,0.23617525,115260.0,115250.0,0.38325671]
[1761674769336,0.23817525,115260.0,115250.0,0.38325671]
[1761674770644,0.23817525,115260.0,115250.0,0.21373]
[1761674771139,0.06864854,115260.0,115250.0,0.21373]
[1761674771444,0.23817525,115260.0,115250.0,0.21373]
[1761674771634,0.23817525,115260.0,115250.0,0.38325671]
[1761674772034,0.23817525,115260.0,115250.0,0.21373]
[1761674772435,0.23817525,115260.0,115250.0,0.38325671]
[1761674773244,0.23817525,115260.0,115250.0,0.21373]
[1761674773744,0.06864854,115260.0,115250.0,0.21373]
[1761674774648,0.23812026,115260.0,115250.0,0.21373]
[1761674775746,0.59892026,115260.0,115250.0,0.21373]
[1761674776444,0.61187026,115260.0,115250.0,0.21373]
[1761674777147,0.44239854,115260.0,115250.0,0.21373]
[1761674777345,0.61187026,115260.0,115250.0,0.21373]
[1761674780047,0.61187026,115260.0,115250.0,0.20064]
[1761674785451,0.61187026,115260.0,115250.0,0.21333]
[1761674785646,0.25107026,115260.0,115250.0,0.21333]
[1761674787855,0.06864854,115260.0,115250.0,0.21333]
[1761674788055,0.23812026,115260.0,115250.0,0.21333]
[1761674788258,0.06864854,115260.0,115250.0,0.21333]
[1761674789756,0.23812026,115260.0,115250.0,0.21333]
[1761674796651,0.24624026,115260.0,115250.0,0.21333]
[1761674796856,0.07676854,115260.0,115250.0,0.21333]
[1761674797057,0.24624026,115260.0,115250.0,0.21333]
[1761674800366,0.23812026,115260.0,115250.0,0.21333]
[1761674805069,0.23812026,115260.0,115250.0,0.05645]
[1761674805276,0.24590026,115260.0,115250.0,0.04376]
[1761674805675,0.60670026,115260.0,115250.0,0.04376]
[1761674807377,0.23812026,115260.0,115250.0,0.05728]
[1761674807876,0.59892026,115260.0,115250.0,0.05728]
[1761674809873,0.06864854,115260.0,115250.0,0.06990705]
[1761674810474,0.23812026,115260.0,115250.0,0.06990705]
[1761674814578,0.06864854,115260.0,115250.0,0.06990705]
[1761674814780,0.04762854,115260.0,115250.0,0.06990705]
[1761674814979,0.06934854,115260.0,115250.0,0.06990705]
[1761674815887,0.06934854,115260.0,115250.0,0.05728]
[1761674816088,0.06934854,115260.0,115250.0,0.07109593]
[1761674817581,0.23882026,115260.0,115250.0,0.07109593]
[1761674819390,0.06934854,115260.0,115250.0,0.07109593]
[1761674821889,0.04762854,115260.0,115250.0,0.68932553]
[1761674822294,0.02496854,115260.0,115250.0,0.69192553]
[1761674822690,0.002,115260.0,115250.0,0.69192553]
[1761674823091,0.002,115260.0,115250.0,0.68932553]
[1761674823292,0.002,115260.0,115250.0,0.69192553]
[1761674823684,0.55674172,115280.0,115270.0,0.04438]
[1761674823889,0.43154384,115280.0,115270.0,0.21439]
[1761674824089,0.43154384,115280.0,115270.0,0.22939481]
[1761674824491,0.24021556,115280.0,115270.0,0.22939481]
[1761674826403,0.21728172,115280.0,115270.0,0.22939481]
[1761674827104,0.21728172,115280.0,115270.0,0.23822755]
[1761674827896,0.21728172,115280.0,115270.0,0.22939481]
[1761674828096,0.04781,115280.0,115270.0,0.31614871]
[1761674829301,0.04781,115280.0,115270.0,0.3250167]
[1761674830203,0.04781,115280.0,115270.0,0.2382628]
[1761674830504,0.04781,115280.0,115270.0,0.3250167]
[1761674834009,0.0477,115280.0,115270.0,0.3250167]
[1761674834206,0.0477,115280.0,115270.0,0.6858167]
[1761674834407,0.0477,115280.0,115270.0,0.85528842]
[1761674834613,0.0045,115280.0,115270.0,0.85528842]
[1761674835301,0.0045,115280.0,115270.0,0.85788842]
[1761674835811,0.5733927,115300.0,115290.0,0.05661]
[1761674836001,0.5733927,115300.0,115290.0,0.48453641]
[1761674836197,0.40405,115300.0,115290.0,0.48453641]
[1761674836403,0.02202,115300.0,115290.0,0.84533641]
[1761674836910,0.5908027,115320.0,115310.0,0.04356]
[1761674837113,0.7601454,115320.0,115310.0,0.05856481]
[1761674837504,0.3993454,115320.0,115310.0,0.05856481]
[1761674838006,0.42221183,115320.0,115310.0,0.05856481]
[1761674838513,0.3993454,115320.0,115310.0,0.05856481]
[1761674839306,0.7601454,115320.0,115310.0,0.05856481]
[1761674839714,0.98233768,115320.0,115310.0,0.01500481]
[1761674839918,0.05487,115290.0,115280.0,0.56116]
[1761674840109,0.2242127,115290.0,115280.0,0.56116]
[1761674840416,0.2242127,115290.0,115280.0,0.5749]
[1761674841611,0.2125927,115290.0,115280.0,0.5749]
[1761674842016,0.2125927,115290.0,115280.0,0.2141]
[1761674844108,0.2125927,115290.0,115280.0,0.5749]
[1761674844715,0.2125927,115290.0,115280.0,0.2141]
[1761674846821,0.2125927,115290.0,115280.0,0.3834427]
[1761674847119,0.2125927,115290.0,115280.0,0.4701891]
[1761674848819,0.2125927,115290.0,115280.0,0.6616464]
[1761674849023,0.2125927,115290.0,115280.0,0.5749]
[1761674849320,0.2125927,115290.0,115280.0,0.7442427]
[1761674851223,0.2125927,115290.0,115280.0,0.5749]
[1761674853725,0.2125927,115290.0,115280.0,0.8309891]
[1761674854218,0.0228645,115290.0,115280.0,1.0003318]
[1761674854523,0.44247452,115310.0,115300.0,0.05772]
[1761674854717,0.4653426,115310.0,115300.0,0.05772]
[1761674855620,0.6346853,115310.0,115300.0,0.05772]
[1761674856614,0.4520426,115310.0,115300.0,0.05772]
[1761674856813,0.6213853,115310.0,115300.0,0.05772]
[1761674861425,0.4520426,115310.0,115300.0,0.05772]
[1761674861727,0.6213853,115310.0,115300.0,0.05772]
[1761674863920,0.23738078,115310.0,115300.0,0.8313941]
[1761674864421,0.04517,115310.0,115300.0,0.8313941]
[1761674865319,0.04717,115310.0,115300.0,0.8313941]
[1761674865521,0.002,115310.0,115300.0,1.0007368]
[1761674867713,0.02389,115310.0,115300.0,1.0007368]
[1761674867917,0.04717,115310.0,115300.0,0.6620514]
[1761674868127,0.04717,115310.0,115300.0,0.8313941]
[1761674868527,0.002,115310.0,115300.0,1.0007368]
[1761674869027,0.002,115310.0,115300.0,0.8313941]
[1761674869928,0.02389,115310.0,115300.0,0.8313941]
[1761674870627,0.002,115310.0,115300.0,1.0007368]
[1761674874329,0.002,115310.0,115300.0,0.6620514]
[1761674874521,0.002,115310.0,115300.0,1.0007368]
[1761674875021,0.0045,115320.0,115310.0,0.1444439]
[1761674875226,0.0045,115320.0,115310.0,0.6745866]
[1761674876232,0.04967,115320.0,115310.0,0.5052439]
[1761674876430,0.05367,115320.0,115310.0,0.6745866]
[1761674876629,0.03039,115320.0,115310.0,0.6745866]
[1761674877323,0.0085,115320.0,115310.0,0.6745866]
[1761674880736,0.0085,115320.0,115310.0,0.6771866]
[1761674880926,0.0085,115320.0,115310.0,0.6745866]
[1761674881126,0.00012885,115320.0,115310.0,0.8439293]
[1761674881330,0.2145127,115350.0,115340.0,0.1444213]
[1761674881525,0.0680167,115350.0,115340.0,0.470524]
[1761674881732,0.04517,115350.0,115340.0,0.831324]
[1761674882235,0.2190127,115360.0,115350.0,0.1444138]
[1761674882538,0.2190127,115360.0,115350.0,0.6655565]
[1761674883520,0.3057013,115360.0,115350.0,0.6655565]
[1761674884133,0.3057013,115360.0,115350.0,0.4962138]
[1761674884326,0.3057013,115360.0,115350.0,0.2885538]
[1761674884327,0.488024,115360.0,115350.0,0.2885538]
[1761674884921,0.488024,115360.0,115350.0,0.3037038]
[1761674885431,0.1363586,115360.0,115350.0,0.3037038]
[1761674885631,0.475044,115360.0,115350.0,0.3037038]
[1761674885936,0.3883554,115360.0,115350.0,0.3037038]
[1761674886135,0.2190127,115360.0,115350.0,0.3037038]
[1761674886336,0.2190127,115360.0,115350.0,0.8338465]
[1761674886537,0.04967,115360.0,115350.0,0.8338465]
[1761674887432,0.0045,115360.0,115350.0,0.8338465]
[1761674887633,0.0045,115360.0,115350.0,1.0031892]
[1761674887836,0.0045,115360.0,115350.0,1.0057892]
[1761674888039,0.0045,115360.0,115350.0,0.8364465]
[1761674889140,0.0045,115360.0,115350.0,0.8338465]
[1761674889440,0.0045,115360.0,115350.0,0.8318465]
[1761674889836,0.0045,115360.0,115350.0,0.8358465]
[1761674890033,0.0045,115360.0,115350.0,1.0077892]
[1761674890247,0.00317631,115360.0,115350.0,1.0077892]
[1761674891543,0.00317631,115360.0,115350.0,1.7477892]
[1761674892348,0.00317631,115360.0,115350.0,1.4065038]
[1761674892537,0.00317631,115360.0,115350.0,1.5758465]
[1761674892737,0.00317631,115360.0,115350.0,1.5808465]
[1761674894144,0.00317631,115360.0,115350.0,1.5808065]
[1761674894344,0.00317631,115360.0,115350.0,1.4240465]
[1761674894545,0.00317631,115360.0,115350.0,1.5808065]
[1761674895044,0.00317631,115360.0,115350.0,1.4240465]
[1761674895247,0.00317631,115360.0,115350.0,1.5808065]
[1761674895952,0.00317631,115360.0,115350.0,1.58058166]
[1761674897245,0.00317631,115360.0,115350.0,2.34969952]
[1761674898339,0.00317631,115360.0,115350.0,2.19293952]
[1761674898548,0.16911786,115390.0,115380.0,0.05779]
[1761674898744,0.16911786,115390.0,115380.0,0.21451]
[1761674898745,0.06765517,115390.0,115380.0,0.21451]
[1761674899333,0.23677303,115390.0,115380.0,0.21451]
[1761674899547,0.23677303,115390.0,115380.0,0.3011812]
[1761674899746,0.23677303,115390.0,115380.0,0.30975773]
[1761674900042,0.24968303,115390.0,115380.0,0.30975773]
[1761674900243,0.08056517,115390.0,115380.0,0.3011812]
[1761674900443,0.24968303,115390.0,115380.0,0.3011812]
[1761674900643,0.08057118,115390.0,115380.0,0.3011812]
[1761674900844,0.06766118,115390.0,115380.0,0.3011812]
[1761674903052,0.07972118,115390.0,115380.0,0.21451]
[1761674903246,0.24883904,115390.0,115380.0,0.20172]
[1761674903453,0.24883904,115390.0,115380.0,0.045]
[1761674903648,0.24883904,115390.0,115380.0,0.20168]
[1761674903852,0.60963904,115390.0,115380.0,0.20168]
[1761674904757,0.06766118,115390.0,115380.0,0.3011412]
[1761674905159,0.045,115390.0,115380.0,0.3011412]
[1761674905459,0.06768847,115390.0,115380.0,0.3011412]
[1761674910467,0.06768847,115390.0,115380.0,0.47025906]
[1761674910658,0.02268847,115390.0,115380.0,0.83105906]
[1761674911058,0.02268847,115390.0,115380.0,1.00017692]
[1761674911357,0.07225702,115400.0,115390.0,0.1444538]
[1761674911557,0.07225702,115400.0,115390.0,0.31357166]
[1761674911764,0.02725702,115400.0,115390.0,0.31357166]
[1761674912664,0.04920702,115400.0,115390.0,0.31357166]
[1761674912864,0.07225702,115400.0,115390.0,0.31357166]
[1761674913462,0.02725702,115400.0,115390.0,0.31357166]
[1761674913659,0.02725702,115400.0,115390.0,0.67437166]
[1761674914260,0.0045,115400.0,115390.0,0.67437166]
[1761674914667,0.0045,115400.0,115390.0,0.67637166]
[1761674914867,0.05028,115400.0,115390.0,0.83305166]
[1761674915260,0.05028,115400.0,115390.0,0.83105166]
[1761674915465,0.0045,115400.0,115390.0,0.83505166]
[1761674915965,0.02754,115400.0,115390.0,0.83505166]
[1761674916170,0.07294456,115400.0,115390.0,0.6659337]
[1761674916672,0.07294456,115400.0,115390.0,0.57927]
[1761674917166,0.07294456,115400.0,115390.0,0.6659337]
[1761674918065,0.07294456,115400.0,115390.0,0.57927]
[1761674918274,0.08660456,115400.0,115390.0,0.049]
[1761674918571,0.27888338,115400.0,115390.0,0.20447]
[1761674918870,0.63968338,115400.0,115390.0,0.20447]
[1761674919167,0.67077486,115400.0,115390.0,0.20447]
[1761674919474,0.67077486,115400.0,115390.0,0.04779]
[1761674919766,0.29631486,115400.0,115390.0,0.06048]
[1761674920377,0.27888338,115400.0,115390.0,0.04779]
[1761674920669,0.63968338,115400.0,115390.0,0.04779]
[1761674920869,0.63968338,115400.0,115390.0,0.0266]
[1761674921071,0.67077486,115400.0,115390.0,0.0266]
[1761674921271,0.67077486,115400.0,115390.0,0.04779]
[1761674922073,0.501657,115400.0,115390.0,0.04779]
[1761674922264,0.67077486,115400.0,115390.0,0.04779]
[1761674923362,0.63968338,115400.0,115390.0,0.04779]
[1761674923978,0.63968338,115400.0,115390.0,0.06048]
[1761674924872,0.26522338,115400.0,115390.0,0.06048]
[1761674925072,0.09610552,115400.0,115390.0,0.06048]
[1761674925470,0.07294456,115400.0,115390.0,0.06048]
[1761674927675,0.07294456,115400.0,115390.0,0.42128]
[1761674927971,0.07294456,115400.0,115390.0,0.67706156]
[1761674928776,0.07294456,115400.0,115390.0,0.5079437]
[1761674929573,0.02716456,115400.0,115390.0,0.67706156]
[1761674929772,0.02717607,115400.0,115390.0,0.67706156]
[1761674930178,0.0045,115400.0,115390.0,0.67706156]
[1761674938785,0.02754,115400.0,115390.0,0.67706156]
[1761674938985,0.05028,115400.0,115390.0,0.5079437]
[1761674939186,0.05028,115400.0,115390.0,0.6646637]
[1761674940086,0.05028,115400.0,115390.0,0.5079437]
[1761674940386,0.05028,115400.0,115390.0,0.6646637]
[1761674940884,0.21939786,115400.0,115390.0,0.578]
[1761674941277,0.05028,115400.0,115390.0,0.578]
[1761674941987,0.05028,115400.0,115390.0,0.6646637]
[1761674944391,0.05028,115400.0,115390.0,0.578]
[1761674944788,0.05028,115400.0,115390.0,0.6646637]
[1761674945890,0.05028,115400.0,115390.0,0.2172]
[1761674946093,0.25361295,115400.0,115390.0,0.2172]
[1761674946391,0.25361295,115400.0,115390.0,0.20451]
[1761674947896,0.61441295,115400.0,115390.0,0.04779]
[1761674948687,0.61441295,115400.0,115390.0,0.0266]
[1761674948894,1.21441295,115400.0,115390.0,0.0266]
[1761674949087,1.37109295,115400.0,115390.0,0.02571]
[1761674949489,0.61441295,115400.0,115390.0,0.004]
[1761674949694,0.77109295,115400.0,115390.0,0.004]
[1761674949994,0.79425391,115400.0,115390.0,0.004]
[1761674952398,0.79425391,115400.0,115390.0,0.02571]
[1761674952697,0.79425391,115400.0,115390.0,0.04883]
[1761674953589,1.39425391,115400.0,115390.0,0.004]
[1761674954096,0.79685391,115400.0,115390.0,0.004]
[1761674954297,0.81685391,115400.0,115390.0,0.004]
[1761674954497,0.77369295,115400.0,115390.0,0.004]
[1761674954888,0.79369295,115400.0,115390.0,0.004]
[1761674955086,0.77369295,115400.0,115390.0,0.004]
[1761674955298,0.79369295,115400.0,115390.0,0.004]
[1761674955499,0.77369295,115400.0,115390.0,0.004]
[1761674955701,0.96284841,115400.0,115390.0,0.004]
[1761674956098,0.0594,115370.0,115360.0,0.05762]
[1761674956300,0.05772,115360.0,115350.0,0.04483]
[1761674956601,0.22685666,115360.0,115350.0,0.04483]
[1761674956897,0.39599332,115360.0,115350.0,0.04483]
[1761674957102,0.91355332,115360.0,115350.0,0.04483]
[1761674957502,0.91355332,115360.0,115350.0,0.05783]
[1761674957699,0.92204268,115360.0,115350.0,0.05783]
[1761674959403,0.92204268,115360.0,115350.0,0.04483]
[1761674959600,0.92204268,115360.0,115350.0,0.05183]
[1761674961009,0.92204268,115360.0,115350.0,0.007]
[1761674961010,0.94204268,115360.0,115350.0,0.007]
[1761674961194,0.04617,115330.0,115320.0,0.74413666]
[1761674962003,0.04617,115330.0,115320.0,0.83085306]
[1761674962411,0.04617,115330.0,115320.0,0.75277109]
[1761674962912,0.04617,115330.0,115320.0,0.83948749]
[1761674964010,0.04617,115330.0,115320.0,1.00862415]
[1761674964403,0.04617,115330.0,115320.0,0.92690775]
[1761674964707,0.04617,115330.0,115320.0,0.75777109]
[1761674964907,0.04617,115330.0,115320.0,0.39697109]
[1761674965205,0.58933666,115330.0,115320.0,0.04983]
[1761674966700,0.4202,115330.0,115320.0,0.06244]
[1761674966903,0.40697,115330.0,115320.0,0.06244]
[1761674967102,0.57610666,115330.0,115320.0,0.06244]
[1761674967603,0.40697,115330.0,115320.0,0.06244]
[1761674967804,0.57610666,115330.0,115320.0,0.06244]
[1761674968004,0.57610666,115330.0,115320.0,0.23157666]
[1761674973616,0.40697,115330.0,115320.0,0.31829306]
[1761674973915,0.73137666,115340.0,115330.0,0.05624]
[1761674974120,0.75390202,115340.0,115330.0,0.22537666]
[1761674974322,0.75390202,115340.0,115330.0,0.05624]
[1761674975322,0.75390202,115340.0,115330.0,0.22537666]
[1761674975617,0.75390202,115340.0,115330.0,0.05624]
[1761674975921,0.93509868,115340.0,115330.0,0.04352]
[1761674976321,0.39310202,115340.0,115330.0,0.22537666]
[1761674976518,0.23626202,115340.0,115330.0,0.22537666]
[1761674976919,0.23626202,115340.0,115330.0,0.31208546]
[1761674976920,0.0446,115340.0,115330.0,0.31208546]
[1761674977223,0.0446,115340.0,115330.0,0.67288546]
[1761674979223,0.0446,115340.0,115330.0,0.58617666]
[1761674979623,0.0446,115340.0,115330.0,0.74309666]
[1761674980524,0.21373666,115340.0,115330.0,0.82980556]
[1761674980928,0.0446,115340.0,115330.0,0.82980556]
[1761674983425,0.21373666,115340.0,115330.0,0.57396]
[1761674984028,0.21373666,115340.0,115330.0,0.74309666]
[1761674984327,0.21373666,115340.0,115330.0,0.57396]
[1761674984524,0.21373666,115340.0,115330.0,0.74309666]
[1761674984721,0.21373666,115340.0,115330.0,0.57396]
[1761674984921,0.21373666,115340.0,115330.0,0.6606689]
[1761674985122,0.2363577,115340.0,115330.0,0.6606689]
[1761674985323,0.2363577,115340.0,115330.0,0.82980556]
[1761674985728,0.02262104,115340.0,115330.0,0.82980556]
[1761674986130,0.6287891,115360.0,115350.0,0.05624]
[1761674986336,0.80831546,115360.0,115350.0,0.05624]
[1761674987227,0.65143546,115360.0,115350.0,0.05624]
[1761674988831,0.65543546,115360.0,115350.0,0.05624]
[1761674989127,0.62434398,115360.0,115350.0,0.05624]
[1761674992240,0.62443317,115360.0,115350.0,0.05624]
[1761674994641,0.62443317,115360.0,115350.0,0.0650626]
[1761674995050,0.62443317,115360.0,115350.0,0.1517564]
[1761674995233,0.07124598,115360.0,115350.0,0.6693564]
[1761674995541,0.0486,115360.0,115350.0,0.83849306]
[1761674996233,0.0486,115360.0,115350.0,0.47769306]
[1761674996433,0.0486,115360.0,115350.0,0.83849306]
[1761674996636,0.0486,115360.0,115350.0,0.47769306]
[1761674996837,0.0486,115360.0,115350.0,0.83849306]
[1761674998446,0.21773666,115360.0,115350.0,0.83849306]
[1761674998843,0.0446,115360.0,115350.0,0.83849306]
[1761674999347,0.21373666,115360.0,115350.0,0.38217666]
[1761674999544,0.77883467,115360.0,115340.0,0.37352]
[1761674999845,0.22528666,115350.0,115340.0,0.21304]
[1761675000045,0.24791801,115350.0,115340.0,0.21304]
[1761675000844,0.24791801,115350.0,115340.0,0.21308]
[1761675001246,0.24791801,115350.0,115340.0,0.04352]
[1761675001950,0.07878135,115350.0,115340.0,0.05624]
[1761675002254,0.23636801,115350.0,115340.0,0.1429413]
[1761675002442,0.06723135,115350.0,115340.0,0.31407796]
[1761675002846,0.06723135,115350.0,115340.0,0.22737666]
[1761675003046,0.23636801,115350.0,115340.0,0.22737666]
[1761675004052,0.23636801,115350.0,115340.0,0.31407796]
[1761675008362,0.23636801,115350.0,115340.0,0.1449413]
[1761675008547,0.23636801,115350.0,115340.0,0.31407796]
[1761675010160,0.21373666,115350.0,115340.0,0.31407796]
[1761675010654,0.0446,115350.0,115340.0,0.31407796]
[1761675010954,0.0446,115350.0,115340.0,0.22737666]
[1761675011555,0.21373666,115350.0,115340.0,0.22737666]
[1761675012657,0.21373666,115350.0,115340.0,0.31407796]
[1761675014762,0.21373666,115350.0,115340.0,0.22737666]
[1761675014952,0.24794505,115350.0,115340.0,0.04552]
[1761675015256,0.41708171,115350.0,115340.0,0.04552]
[1761675015462,0.77788171,115350.0,115340.0,0.002]
[1761675015648,0.60874505,115350.0,115340.0,0.002]
[1761675016757,0.60874505,115350.0,115340.0,0.02335]
[1761675016951,0.77788171,115350.0,115340.0,0.02335]
[1761675017360,0.60874505,115350.0,115340.0,0.02335]
[1761675017564,0.60874505,115350.0,115340.0,0.02135]
[1761675017864,0.61085145,115350.0,115340.0,0.0425]
[1761675018964,0.60885145,115350.0,115340.0,0.02135]
[1761675019569,0.04622,115330.0,115320.0,0.47818302]
[1761675019753,0.22810306,115330.0,115320.0,0.05511]
[1761675020071,0.22810306,115330.0,115320.0,0.21187]
[1761675021165,0.22810306,115330.0,115320.0,0.19926]
[1761675021761,0.22810306,115330.0,115320.0,0.20126]
[1761675022063,0.25095523,115330.0,115320.0,0.0445]
[1761675022562,0.08171217,115330.0,115320.0,0.0445]
[1761675022764,0.25095523,115330.0,115320.0,0.0445]
[1761675023164,0.25962185,115330.0,115320.0,0.0445]
[1761675023564,0.25095523,115330.0,115320.0,0.0445]
[1761675027473,0.2595949,115330.0,115320.0,0.0445]
[1761675027664,0.25095523,115330.0,115320.0,0.0445]
[1761675028474,0.25095523,115330.0,115320.0,0.05779]
[1761675030870,0.06907217,115330.0,115320.0,0.05779]
[1761675036776,0.23831523,115330.0,115320.0,0.05779]
[1761675037678,0.06907217,115330.0,115320.0,0.05779]
[1761675040282,0.23831523,115330.0,115320.0,0.05779]
[1761675040482,0.25095523,115330.0,115320.0,0.0445]
[1761675041777,0.61175523,115330.0,115320.0,0.002]
[1761675041981,0.63175523,115330.0,115320.0,0.002]
[1761675042181,0.63500576,115330.0,115320.0,0.002]
[1761675042587,0.63500576,115330.0,115320.0,0.04471]
[1761675042785,0.61175523,115330.0,115320.0,0.04471]
[1761675043380,0.61375523,115330.0,115320.0,0.04271]
[1761675043686,0.44451217,115330.0,115320.0,0.04271]
[1761675043987,0.61375523,115330.0,115320.0,0.04271]
[1761675044877,0.60111523,115330.0,115320.0,0.05613]
[1761675045076,0.07107217,115330.0,115320.0,0.05613]
[1761675049887,0.07107217,115330.0,115320.0,0.41693]
[1761675051778,0.07107217,115330.0,115320.0,0.05613]
[1761675052491,0.07107217,115330.0,115320.0,0.31208936]
[1761675052785,0.02425,115330.0,115320.0,0.5036463]
[1761675052985,0.04403,115330.0,115320.0,0.1428463]
[1761675053194,0.04403,115330.0,115320.0,0.5036463]
[1761675054191,0.04403,115330.0,115320.0,0.5056463]
[1761675062287,0.04403,115330.0,115320.0,0.41893]
[1761675063092,0.04403,115330.0,115320.0,0.5056463]
[1761675065596,0.04403,115330.0,115320.0,0.41893]
[1761675066404,0.04403,115330.0,115320.0,0.5056463]
[1761675068102,0.04403,115330.0,115320.0,0.1448463]
[1761675068803,0.04403,115330.0,115320.0,0.5056463]
[1761675070407,0.21327306,115330.0,115320.0,0.41893]
[1761675070600,0.21327306,115330.0,115320.0,0.57569]
[1761675070800,0.21327306,115330.0,115320.0,0.21489]
[1761675071102,0.5970475,115330.0,115320.0,0.21489]
[1761675071902,0.57407306,115330.0,115320.0,0.21489]
[1761675072298,0.21327306,115330.0,115320.0,0.21489]
[1761675072996,0.04403,115330.0,115320.0,0.21489]
[1761675073199,0.04403,115330.0,115320.0,0.57569]
[1761675074407,0.04403,115330.0,115320.0,0.6624064]
[1761675074810,0.04377,115330.0,115320.0,0.6624064]
[1761675076311,0.06676622,115330.0,115320.0,0.6624064]
[1761675077801,0.23602168,115330.0,115320.0,0.83166186]
[1761675078814,0.23602168,115330.0,115320.0,0.6624064]
[1761675079003,0.23602168,115330.0,115320.0,0.83166186]
[1761675079713,0.23602168,115330.0,115320.0,0.74494546]
[1761675080210,0.23602168,115330.0,115320.0,0.57569]
[1761675080410,0.23602168,115330.0,115320.0,0.74494546]
[1761675082015,0.23602168,115330.0,115320.0,0.57569]
[1761675082208,0.23602168,115330.0,115320.0,0.74494546]
[1761675082708,0.23602168,115330.0,115320.0,0.21489]
[1761675082908,0.59682168,115330.0,115320.0,0.05813]
[1761675083110,0.77871714,115330.0,115320.0,0.04471]
[1761675083316,0.91248092,115330.0,115320.0,0.002]
[1761675083506,1.57879894,115330.0,115320.0,0.002]
[1761675083706,1.01657219,115330.0,115320.0,0.002]
[1761675083913,1.06321171,115330.0,115320.0,0.002]
[1761675084412,1.01657219,115330.0,115320.0,0.002]
[1761675085007,1.04096171,115330.0,115290.0,0.53525737]
[1761675085212,0.21372546,115300.0,115290.0,0.58170737]
[1761675085514,0.04447,115310.0,115300.0,0.01353]
[1761675085720,0.21372546,115310.0,115300.0,0.05998]
[1761675085907,0.23669894,115310.0,115300.0,0.22923546]
[1761675086815,0.23669894,115310.0,115300.0,0.23423546]
[1761675087216,0.21372546,115310.0,115300.0,0.23423546]
[1761675089220,0.21372546,115310.0,115300.0,0.59503546]
[1761675090318,0.02295,115310.0,115300.0,0.68176686]
[1761675090521,0.37048546,115320.0,115310.0,0.05998]
[1761675090723,0.39343785,115320.0,115310.0,0.05998]
[1761675091017,0.23667785,115320.0,115310.0,0.05998]
[1761675091318,0.21372546,115320.0,115310.0,0.59003546]
[1761675091518,0.236677,115320.0,115310.0,0.42078]
[1761675091719,0.21372546,115320.0,115310.0,0.05998]
[1761675091917,0.23667699,115320.0,115310.0,0.05998]
[1761675092109,0.23667699,115320.0,115310.0,0.06198]
[1761675092309,0.21372546,115320.0,115310.0,0.06198]
[1761675092817,0.21372546,115320.0,115310.0,0.1487039]
[1761675093017,0.21372546,115320.0,115310.0,0.06198]
[1761675093211,0.21372546,115320.0,115310.0,0.74879546]
[1761675093410,0.21372546,115320.0,115310.0,0.83551936]
[1761675093618,0.56201,115330.0,115320.0,0.05798]
[1761675093916,0.75418175,115330.0,115320.0,0.05798]
[1761675094220,0.23662175,115330.0,115320.0,0.05798]
[1761675094418,0.21370546,115330.0,115320.0,0.05798]
[1761675094819,0.2366186,115330.0,115320.0,0.05798]
[1761675095219,0.2366186,115330.0,115320.0,0.5054963]
[1761675095416,0.21370546,115330.0,115320.0,0.5054963]
[1761675096019,0.21370546,115330.0,115320.0,0.1446963]
[1761675096220,0.23661943,115330.0,115320.0,0.05798]
[1761675096716,0.21370546,115330.0,115320.0,0.22723546]
[1761675096920,0.21370546,115330.0,115320.0,0.1446963]
[1761675097120,0.21370546,115330.0,115320.0,0.05798]
[1761675097516,0.21370546,115330.0,115320.0,0.1446963]
[1761675097721,0.21370546,115330.0,115320.0,0.5054963]
[1761675100124,0.21370546,115330.0,115320.0,0.41878]
[1761675101322,0.21370546,115330.0,115320.0,0.05798]
[1761675101510,0.39560092,115330.0,115320.0,0.04411]
[1761675101710,0.05698,115320.0,115310.0,0.02108]
[1761675102022,0.40587642,115320.0,115310.0,0.21474]
[1761675102223,0.38296092,115320.0,115310.0,0.21474]
[1761675103328,0.38296092,115320.0,115310.0,0.21674]
[1761675106032,0.39549092,115320.0,115310.0,0.05998]
[1761675106525,0.38296092,115320.0,115310.0,0.05998]
[1761675109824,0.04445,115320.0,115310.0,0.05998]
[1761675110025,0.38296092,115320.0,115310.0,0.05998]
[1761675110229,0.21370546,115320.0,115310.0,0.05998]
[1761675111632,0.38296092,115320.0,115310.0,0.05998]
[1761675112130,0.38296092,115320.0,115310.0,0.42078]
[1761675114832,0.39549092,115320.0,115310.0,0.40691]
[1761675115034,0.39549092,115320.0,115310.0,0.04611]
[1761675116226,0.41842215,115320.0,115310.0,0.04611]
[1761675116632,0.77922215,115320.0,115310.0,0.04611]
[1761675118423,0.77922215,115320.0,115310.0,0.02308]
[1761675118621,0.77922215,115320.0,115310.0,0.002]
[1761675118820,0.93598215,115320.0,115310.0,0.002]